fUSD/lending_fUSD_20240629
["ID","MTS","AMOUNT","RATE_DAILY","PERIOD"]
[330612931,1719624669454,-270.264303,0.00021918,2]
[330612932,1719624669464,-151.0,0.00021918,2]
[330612933,1719624669473,-195.764052,0.00021918,2]
[330612934,1719624669482,-320.0,0.00021918,2]
[330612935,1719624669493,-320.0,0.00021918,2]
[330612936,1719624669502,-320.0,0.00021918,2]
[330612937,1719624669512,-320.0,0.00021918,2]
[330612938,1719624669522,-320.0,0.00021918,2]
[330612939,1719624669531,-320.0,0.00021918,2]
[330612940,1719624669541,-320.0,0.00021918,2]
[330612941,1719624669551,-320.0,0.00021918,2]
[330612942,1719624669686,-320.0,0.00021918,2]
[330612943,1719624669696,-320.0,0.00021918,2]
[330612944,1719624669706,-320.0,0.00021918,2]
[330612945,1719624669715,-320.0,0.00021918,2]
[330612946,1719624669725,-320.0,0.00021918,2]
[330612947,1719624669734,-320.0,0.00021918,2]
[330612948,1719624669744,-320.0,0.00021918,2]
[330612949,1719624669754,-320.0,0.00021918,2]
[330612950,1719624669764,-320.0,0.00021918,2]
[330612951,1719624669773,-320.0,0.00021918,2]
[330612952,1719624669783,-320.0,0.00021918,2]
[330612953,1719624669792,-320.0,0.00021918,2]
[330612954,1719624669802,-735.94,0.00021918,2]
[330612955,1719624669811,-186.47,0.00021918,2]
[330612956,1719624669821,-150.0,0.00021918,2]
[330612957,1719624669831,-150.0,0.00021918,2]
[330612958,1719624669840,-150.0,0.00021918,2]
[330612959,1719624669851,-150.0,0.00021918,2]
[330612960,1719624669860,-150.0,0.00021918,2]
[330612961,1719624669870,-150.0,0.00021918,2]
[330612962,1719624669879,-267.06365256,0.00021918,2]
[330612963,1719624669889,-150.0,0.00021944,2]
[330612964,1719624669899,-1500.0,0.0002195,2]
[330612965,1719624669908,-150.0,0.00021951,2]
[330612966,1719624669918,-150.0,0.00021953,2]
[330612967,1719624669929,-1500.0,0.00021963,2]
[330612968,1719624669938,-150.0,0.00021964,2]
[330612969,1719624669948,-1000.0,0.0002197,2]
[330612970,1719624669958,-1000.0,0.0002197,2]
[330612971,1719624669967,-150.0,0.00021971,2]
[330612972,1719624669977,-331.78,0.00021977,6]
[330612973,1719624669987,-150.0,0.00021978,10]
[330612974,1719624669997,-150.0,0.00021978,10]
[330612975,1719624670007,-150.0,0.00021978,10]
[330612976,1719624670017,-150.0,0.00021978,10]
[330612977,1719624670026,-150.0,0.00021978,10]
[330612978,1719624670036,-150.0,0.00021978,10]
[330612979,1719624670045,-300.0,0.00021981,2]
[330612980,1719624670055,-150.0,0.00021982,2]
[330612981,1719624670065,-150.0,0.00021983,2]
[330612982,1719624670075,-12067.90706724,0.00021996,2]
[330612983,1719624670085,-150.0,0.00021997,2]
[330612984,1719624670094,-150.0,0.0002201,2]
[330612985,1719624670104,-150.0,0.00022026,10]
[330612986,1719624670114,-150.0,0.00022026,10]
[330612987,1719624670123,-150.0,0.00022026,10]
[330612988,1719624670133,-150.0,0.00022026,10]
[330612989,1719624670143,-150.0,0.00022026,10]
[330612990,1719624670152,-150.0,0.00022026,10]
[330612991,1719624670162,-150.0,0.00022026,10]
[330612992,1719624670172,-150.0,0.00022026,10]
[330612993,1719624670183,-150.0,0.00022026,10]
[330612994,1719624670193,-150.0,0.00022026,10]
[330612995,1719624670203,-150.0,0.00022026,10]
[330612996,1719624670213,-150.0,0.00022026,10]
[330612997,1719624670223,-1374.53,0.00022026,3]
[330612998,1719624670233,-1374.53,0.00022026,3]
[330612999,1719624670244,-1374.53,0.00022026,3]
[330613000,1719624670254,-1374.53,0.00022026,3]
[330613001,1719624670264,-1374.53,0.00022026,3]
[330613002,1719624670273,-1374.53,0.00022026,3]
[330613003,1719624670283,-150.0,0.00022026,2]
[330613004,1719624670293,-150.0,0.00022026,7]
[330613005,1719624670303,-500.0,0.00022027,3]
[330613006,1719624670313,-500.0,0.00022027,3]
[330613007,1719624670323,-500.0,0.00022027,3]
[330613008,1719624670332,-500.0,0.00022027,3]
[330613009,1719624670343,-500.0,0.00022027,3]
[330613010,1719624670357,-500.0,0.00022027,3]
[330613011,1719624670367,-563.50017339,0.00022027,3]
[330613012,1719624670376,-2130.52,0.00022027,3]
[330613013,1719624670389,-500.0,0.00022027,3]
[330613014,1719624670398,-500.0,0.00022027,3]
[330613015,1719624670407,-2760.53,0.00022027,3]
[330613016,1719624670417,-1389.6,0.00022027,3]
[330613017,1719624670428,-500.0,0.00022027,3]
[330613018,1719624670438,-500.0,0.00022027,3]
[330613019,1719624670447,-500.0,0.00022027,3]
[330613020,1719624670457,-500.0,0.00022027,3]
[330613021,1719624670467,-534.96,0.00022027,3]
[330613022,1719624670476,-500.0,0.00022027,3]
[330613023,1719624670486,-3528.22,0.00022027,3]
[330613024,1719624670495,-1943.17,0.00022027,3]
[330613025,1719624670505,-500.0,0.00022027,3]
[330613026,1719624670515,-500.0,0.00022027,2]
[330613027,1719624670524,-1338.36,0.00022027,3]
[330613028,1719624670534,-500.0,0.00022027,3]
[330613029,1719624670544,-500.0,0.00022027,3]
[330613030,1719624670554,-500.0,0.00022027,3]
[330613031,1719624670564,-500.0,0.00022027,3]
[330613032,1719624670574,-12415.38,0.00022027,3]
[330613033,1719624670584,-1512.69,0.00022027,3]
[330613034,1719624670594,-500.0,0.00022027,3]
[330613035,1719624670604,-539.63,0.00022027,3]
[330613036,1719624670613,-500.0,0.00022027,3]
[330613037,1719624670623,-500.0,0.00022027,3]
[330613038,1719624670633,-826.44,0.00022027,3]
[330613039,1719624670642,-500.0,0.00022027,3]
[330613040,1719624670652,-500.0,0.00022027,3]
[330613041,1719624670662,-500.0,0.00022027,3]
[330613042,1719624670672,-3010.63,0.00022027,3]
[330613043,1719624670685,-776.87,0.00022027,3]
[330613044,1719624670694,-855.43,0.00022027,3]
[330613045,1719624670704,-1753.0,0.00022027,3]
[330613046,1719624670718,-392.36,0.00022027,3]
[330613047,1719624670728,-500.0,0.00022027,3]
[330613048,1719624670738,-500.0,0.00022027,3]
[330613049,1719624670748,-500.0,0.00022027,3]
[330613050,1719624670759,-1125.2,0.00022027,3]
[330613051,1719624670769,-500.0,0.00022027,3]
[330613052,1719624670779,-659.14,0.00022027,3]
[330613053,1719624670789,-500.0,0.00022027,3]
[330613054,1719624670800,-688.62,0.00022027,3]
[330613055,1719624670810,-500.0,0.00022027,3]
[330613056,1719624670819,-500.0,0.00022027,3]
[330613057,1719624670829,-1195.33,0.00022027,3]
[330613058,1719624670839,-500.0,0.00022027,3]
[330613059,1719624670849,-243.82748288,0.00022027,3]
[330613060,1719624670859,-500.0,0.00022027,3]
[330613061,1719624670868,-1036.69,0.00022027,3]
[330613062,1719624670878,-500.0,0.00022027,2]
[330613063,1719624670888,-632.34,0.00022027,3]
[330613064,1719624670898,-3205.24,0.00022027,3]
[330613065,1719624670908,-768.76,0.00022027,3]
[330613066,1719624670917,-1133.69,0.00022027,3]
[330613067,1719624670928,-200.0,0.00022027,3]
[330613068,1719624670938,-1409.6,0.00022027,3]
[330613069,1719624670947,-500.0,0.00022027,3]
[330613070,1719624670957,-1356.92,0.00022027,3]
[330613071,1719624670968,-500.0,0.00022027,3]
[330613072,1719624670977,-500.0,0.00022027,3]
[330613073,1719624670988,-888.51,0.00022027,3]
[330613074,1719624670998,-816.48,0.00022027,3]
[330613075,1719624671007,-500.0,0.00022027,3]
[330613076,1719624671018,-645.59,0.00022027,3]
[330613077,1719624671027,-500.0,0.00022027,3]
[330613078,1719624671037,-555.63,0.00022027,3]
[330613079,1719624671047,-645.38,0.00022027,3]
[330613080,1719624671056,-656.55,0.00022027,3]
[330613081,1719624671066,-500.0,0.00022027,3]
[330613082,1719624671076,-1031.72,0.00022027,3]
[330613083,1719624671086,-500.0,0.00022027,3]
[330613084,1719624671095,-500.0,0.00022027,3]
[330613085,1719624671105,-500.0,0.00022027,3]
[330613086,1719624671114,-1074.38,0.00022027,3]
[330613087,1719624671124,-913.18,0.00022027,3]
[330613088,1719624671134,-1669.08,0.00022027,3]
[330613089,1719624671143,-500.0,0.00022027,3]
[330613090,1719624671153,-649.95,0.00022027,3]
[330613091,1719624671162,-500.0,0.00022027,3]
[330613092,1719624671172,-500.0,0.00022027,3]
[330613093,1719624671183,-500.0,0.00022027,3]
[330613094,1719624671192,-928.8,0.00022027,3]
[330613095,1719624671201,-500.0,0.00022027,3]
[330613096,1719624671211,-307.8478114,0.00022027,3]
[330613097,1719624671220,-500.0,0.00022027,3]
[330613098,1719624671230,-507.61,0.00022027,3]
[330613099,1719624671241,-849.54,0.00022027,3]
[330613100,1719624671250,-500.0,0.00022027,3]
[330613101,1719624671260,-500.0,0.00022027,3]
[330613102,1719624671270,-684.63,0.00022027,3]
[330613103,1719624671280,-500.0,0.00022027,3]
[330613104,1719624671289,-769.41,0.00022027,3]
[330613105,1719624671299,-500.0,0.00022027,3]
[330613106,1719624671309,-671.92,0.00022027,3]
[330613107,1719624671319,-500.0,0.00022027,3]
[330613108,1719624671329,-500.0,0.00022027,3]
[330613109,1719624671338,-500.0,0.00022027,3]
[330613110,1719624671352,-713.77,0.00022027,3]
[330613111,1719624671362,-500.0,0.00022027,3]
[330613112,1719624671371,-928.4,0.00022027,3]
[330613113,1719624671381,-500.0,0.00022027,3]
[330613114,1719624671391,-500.0,0.00022027,3]
[330613115,1719624671400,-1659.53,0.00022027,3]
[330613116,1719624671410,-3868.76,0.00022027,3]
[330613117,1719624671419,-500.0,0.00022027,3]
[330613118,1719624671430,-500.0,0.00022027,3]
[330613119,1719624671439,-500.0,0.00022027,3]
[330613120,1719624671448,-682.25,0.00022027,3]
[330613121,1719624671458,-1488.07,0.00022027,3]
[330613122,1719624671468,-500.0,0.00022027,3]
[330613123,1719624671478,-383.3461068,0.00022027,3]
[330613124,1719624671488,-500.0,0.00022027,3]
[330613125,1719624671497,-514.14,0.00022027,3]
[330613126,1719624671507,-500.0,0.00022027,3]
[330613127,1719624671516,-766.27,0.00022027,3]
[330613128,1719624671526,-500.0,0.00022027,3]
[330613129,1719624671536,-500.0,0.00022027,3]
[330613130,1719624671545,-500.0,0.00022027,3]
[330613131,1719624671555,-200.0,0.00022027,3]
[330613132,1719624671565,-500.0,0.00022027,3]
[330613133,1719624671575,-771.64,0.00022027,3]
[330613134,1719624671584,-500.0,0.00022027,3]
[330613135,1719624671594,-710.73,0.00022027,3]
[330613136,1719624671604,-500.0,0.00022027,3]
[330613137,1719624671614,-500.0,0.00022027,3]
[330613138,1719624671623,-500.0,0.00022027,3]
[330613139,1719624671633,-500.0,0.00022027,3]
[330613140,1719624671643,-500.0,0.00022027,3]
[330613141,1719624671652,-741.26,0.00022027,3]
[330613142,1719624671662,-519.1,0.00022027,3]
[330613143,1719624671672,-500.0,0.00022027,3]
[330613144,1719624671683,-502.55,0.00022027,3]
[330613145,1719624671692,-1173.67,0.00022027,3]
[330613146,1719624671702,-509.98,0.00022027,3]
[330613147,1719624671711,-500.0,0.00022027,3]
[330613148,1719624671720,-500.0,0.00022027,3]
[330613149,1719624671731,-500.0,0.00022027,3]
[330613150,1719624671740,-825.3,0.00022027,3]
[330613151,1719624671749,-500.0,0.00022027,3]
[330613152,1719624671759,-500.0,0.00022027,3]
[330613153,1719624671770,-500.0,0.00022027,3]
[330613154,1719624671780,-500.0,0.00022027,3]
[330613155,1719624671789,-500.0,0.00022027,3]
[330613156,1719624671799,-500.0,0.00022027,3]
[330613157,1719624671808,-1089.06,0.00022027,3]
[330613158,1719624671817,-861.14,0.00022027,3]
[330613159,1719624672232,-500.0,0.00022027,3]
[330613160,1719624672244,-500.0,0.00022027,3]
[330613161,1719624672254,-500.0,0.00022027,3]
[330613162,1719624672264,-500.0,0.00022027,3]
[330613163,1719624672273,-608.68,0.00022027,3]
[330613164,1719624672283,-585.13818257,0.00022027,3]
[330613165,1719624672293,-500.0,0.00022027,3]
[330613166,1719624672303,-500.0,0.00022027,3]
[330613167,1719624672313,-500.0,0.00022027,3]
[330613168,1719624672322,-572.44,0.00022027,3]
[330613169,1719624672332,-500.0,0.00022027,3]
[330613170,1719624672341,-500.0,0.00022027,3]
[330613171,1719624672354,-500.0,0.00022027,3]
[330613172,1719624672364,-642.93,0.00022027,3]
[330613173,1719624672374,-675.58,0.00022027,3]
[330613174,1719624672383,-500.0,0.00022027,3]
[330613175,1719624672394,-500.0,0.00022027,3]
[330613176,1719624672404,-500.0,0.00022027,3]
[330613177,1719624672413,-725.08,0.00022027,3]
[330613178,1719624672426,-500.0,0.00022027,3]
[330613179,1719624672437,-570.93,0.00022027,3]
[330613180,1719624672446,-500.0,0.00022027,3]
[330613181,1719624672456,-500.0,0.00022027,3]
[330613182,1719624672465,-204.72424766,0.00022027,3]
[330613183,1719624672474,-500.0,0.00022027,3]
[330613184,1719624672484,-634.47,0.00022027,3]
[330613185,1719624672493,-2978.54,0.00022027,3]
[330613186,1719624672503,-851.25,0.00022027,3]
[330613187,1719624672513,-500.0,0.00022027,3]
[330613188,1719624672523,-784.45,0.00022027,3]
[330613189,1719624672533,-673.08,0.00022027,3]
[330613190,1719624672543,-517.43,0.00022027,3]
[330613191,1719624672552,-562.79,0.00022027,3]
[330613192,1719624672562,-697.58,0.00022027,3]
[330613193,1719624672571,-650.5,0.00022027,3]
[330613194,1719624672581,-644.96961855,0.00022027,3]
[330613195,1719624672591,-500.0,0.00022027,3]
[330613196,1719624672600,-192.79288785,0.00022027,3]
[330613197,1719624672610,-500.0,0.00022027,3]
[330613198,1719624672619,-416.23200009,0.00022027,3]
[330613199,1719624672628,-500.0,0.00022027,3]
[330613200,1719624672642,-500.0,0.00022027,3]
[330613201,1719624672652,-729.98,0.00022027,3]
[330613202,1719624672662,-1344.29,0.00022027,3]
[330613203,1719624672672,-500.0,0.00022027,3]
[330613204,1719624672683,-500.0,0.00022027,3]
[330613205,1719624672694,-533.13,0.00022027,3]
[330613206,1719624672704,-500.0,0.00022027,3]
[330613207,1719624672714,-295.5488941,0.00022027,3]
[330613208,1719624672724,-500.0,0.00022027,3]
[330613209,1719624672734,-542.59257355,0.00022027,3]
[330613210,1719624672744,-500.0,0.00022027,3]
[330613211,1719624672757,-524.01,0.00022027,3]
[330613212,1719624672767,-500.0,0.00022027,3]
[330613213,1719624672777,-500.0,0.00022027,3]
[330613214,1719624672787,-500.0,0.00022027,3]
[330613215,1719624672797,-943.2,0.00022027,3]
[330613216,1719624672806,-500.0,0.00022027,3]
[330613217,1719624672816,-5476.49,0.00022027,3]
[330613218,1719624672826,-500.0,0.00022027,3]
[330613219,1719624672836,-1494.81,0.00022027,3]
[330613220,1719624672846,-1046.38,0.00022027,3]
[330613221,1719624672856,-1003.23,0.00022027,3]
[330613222,1719624672866,-721.9,0.00022027,3]
[330613223,1719624672876,-627.37,0.00022027,3]
[330613224,1719624672886,-1385.54,0.00022027,3]
[330613225,1719624672896,-664.35,0.00022027,3]
[330613226,1719624672906,-500.0,0.00022027,3]
[330613227,1719624672916,-500.0,0.00022027,3]
[330613228,1719624672927,-500.0,0.00022027,3]
[330613229,1719624672937,-500.0,0.00022027,3]
[330613230,1719624672947,-500.0,0.00022027,3]
[330613231,1719624672957,-621.94,0.00022027,3]
[330613232,1719624672968,-967.54,0.00022027,3]
[330613233,1719624672978,-500.0,0.00022027,3]
[330613234,1719624672988,-1106.94,0.00022027,3]
[330613235,1719624672998,-520.8,0.00022027,3]
[330613236,1719624673009,-500.0,0.00022027,3]
[330613237,1719624673019,-500.0,0.00022027,3]
[330613238,1719624673030,-1607.88,0.00022027,3]
[330613239,1719624673040,-500.0,0.00022027,3]
[330613240,1719624673050,-3672.01,0.00022027,3]
[330613241,1719624673061,-1556.75,0.00022027,3]
[330613242,1719624673071,-500.0,0.00022027,3]
[330613243,1719624673081,-500.0,0.00022027,3]
[330613244,1719624673091,-500.0,0.00022027,3]
[330613245,1719624673100,-500.0,0.00022027,3]
[330613246,1719624673111,-543.0,0.00022027,3]
[330613247,1719624673121,-500.0,0.00022027,3]
[330613248,1719624673131,-1906.38,0.00022027,3]
[330613249,1719624673141,-791.14,0.00022027,3]
[330613250,1719624673151,-1104.03,0.00022027,3]
[330613251,1719624673161,-694.43,0.00022027,3]
[330613252,1719624673171,-597.33,0.00022027,3]
[330613253,1719624673182,-500.0,0.00022027,3]
[330613254,1719624673193,-500.0,0.00022027,3]
[330613255,1719624673203,-500.0,0.00022027,3]
[330613256,1719624673213,-500.0,0.00022027,3]
[330613257,1719624673224,-500.0,0.00022027,3]
[330613258,1719624673234,-500.0,0.00022027,3]
[330613259,1719624673245,-500.0,0.00022027,3]
[330613260,1719624673257,-500.0,0.00022027,2]
[330613261,1719624673267,-500.0,0.00022027,3]
[330613262,1719624673277,-500.0,0.00022027,3]
[330613263,1719624673287,-500.0,0.00022027,3]
[330613264,1719624673297,-506.0,0.00022027,3]
[330613265,1719624673307,-500.0,0.00022027,3]
[330613266,1719624673318,-500.0,0.00022027,3]
[330613267,1719624673328,-500.0,0.00022027,3]
[330613268,1719624673339,-535.26,0.00022027,3]
[330613269,1719624673355,-916.06,0.00022027,3]
[330613270,1719624673366,-842.9,0.00022027,3]
[330613271,1719624673376,-500.0,0.00022027,3]
[330613272,1719624673387,-530.31,0.00022027,3]
[330613273,1719624673397,-2948.12,0.00022027,3]
[330613274,1719624673408,-500.0,0.00022027,3]
[330613275,1719624673418,-500.0,0.00022027,3]
[330613276,1719624673429,-500.0,0.00022027,3]
[330613277,1719624673439,-500.0,0.00022027,3]
[330613278,1719624673449,-500.0,0.00022027,3]
[330613279,1719624673459,-2284.71,0.00022027,3]
[330613280,1719624673469,-736.97,0.00022027,3]
[330613281,1719624673479,-1628.53,0.00022027,3]
[330613282,1719624673490,-2500.0,0.00022027,3]
[330613283,1719624673504,-500.0,0.00022027,3]
[330613284,1719624673515,-692.42,0.00022027,3]
[330613285,1719624673525,-1100.91,0.00022027,3]
[330613286,1719624673536,-500.0,0.00022027,3]
[330613287,1719624673546,-500.0,0.00022027,3]
[330613288,1719624673556,-500.0,0.00022027,3]
[330613289,1719624673567,-920.98,0.00022027,3]
[330613290,1719624673577,-180.55183197,0.00022027,3]
[330613291,1719624673588,-765.8,0.00022027,3]
[330613292,1719624673598,-1462.28,0.00022027,3]
[330613293,1719624673608,-323.29011308,0.00022027,3]
[330613294,1719624673619,-500.0,0.00022027,3]
[330613295,1719624673629,-1192.32,0.00022027,3]
[330613296,1719624673639,-500.0,0.00022027,3]
[330613297,1719624673650,-500.0,0.00022027,3]
[330613298,1719624673660,-767.31,0.00022027,3]
[330613299,1719624673670,-500.0,0.00022027,3]
[330613300,1719624673681,-500.0,0.00022027,3]
[330613301,1719624673690,-1230.69,0.00022027,3]
[330613302,1719624673701,-500.0,0.00022027,3]
[330613303,1719624673711,-180.73064688,0.00022027,3]
[330613304,1719624673721,-1077.05,0.00022027,3]
[330613305,1719624673731,-500.0,0.00022027,3]
[330613306,1719624673741,-518.12,0.00022027,3]
[330613307,1719624673751,-500.0,0.00022027,3]
[330613308,1719624673761,-500.0,0.00022027,3]
[330613309,1719624673771,-500.0,0.00022027,3]
[330613310,1719624673781,-500.0,0.00022027,3]
[330613311,1719624673791,-500.0,0.00022027,3]
[330613312,1719624673801,-500.0,0.00022027,3]
[330613313,1719624673811,-1688.17,0.00022027,3]
[330613314,1719624673821,-601.19,0.00022027,3]
[330613315,1719624673830,-500.0,0.00022027,3]
[330613316,1719624673840,-1479.36,0.00022027,3]
[330613317,1719624673850,-500.0,0.00022027,3]
[330613318,1719624673860,-1156.92,0.00022027,3]
[330613319,1719624673870,-853.37,0.00022027,3]
[330613320,1719624673880,-1795.06,0.00022027,3]
[330613321,1719624673890,-500.0,0.00022027,3]
[330613322,1719624673899,-942.83,0.00022027,3]
[330613323,1719624673909,-874.34,0.00022027,3]
[330613324,1719624673919,-500.0,0.00022027,3]
[330613325,1719624673930,-500.0,0.00022027,3]
[330613326,1719624673940,-900.09,0.00022027,3]
[330613327,1719624673950,-500.0,0.00022027,3]
[330613328,1719624673964,-500.0,0.00022027,3]
[330613329,1719624673974,-2935.45,0.00022027,3]
[330613330,1719624673984,-500.0,0.00022027,3]
[330613331,1719624673993,-1069.84,0.00022027,3]
[330613332,1719624674003,-500.0,0.00022027,3]
[330613333,1719624674012,-555.49,0.00022027,3]
[330613334,1719624674022,-556.84,0.00022027,3]
[330613335,1719624674032,-500.0,0.00022027,3]
[330613336,1719624674041,-500.0,0.00022027,3]
[330613337,1719624674052,-747.31,0.00022027,3]
[330613338,1719624674062,-500.0,0.00022027,3]
[330613339,1719624674072,-2606.37,0.00022027,3]
[330613340,1719624674083,-1053.03,0.00022027,3]
[330613341,1719624674093,-1198.52,0.00022027,3]
[330613342,1719624674102,-917.84,0.00022027,3]
[330613343,1719624674112,-1429.27,0.00022027,3]
[330613344,1719624674122,-229.36089445,0.00022027,3]
[330613345,1719624674131,-374.64254644,0.00022027,3]
[330613346,1719624674141,-594.29,0.00022027,3]
[330613347,1719624674151,-1207.75,0.00022027,3]
[330613348,1719624674161,-605.19,0.00022027,3]
[330613349,1719624674173,-500.0,0.00022027,3]
[330613350,1719624674186,-500.0,0.00022027,3]
[330613351,1719624674196,-918.69,0.00022027,3]
[330613352,1719624674206,-500.0,0.00022027,3]
[330613353,1719624674215,-858.85,0.00022027,3]
[330613354,1719624674226,-2700.5,0.00022027,3]
[330613355,1719624674236,-531.43,0.00022027,3]
[330613356,1719624674247,-2606.32,0.00022027,3]
[330613357,1719624674257,-915.92,0.00022027,3]
[330613358,1719624674267,-2257.8,0.00022027,3]
[330613359,1719624674277,-500.0,0.00022027,3]
[330613360,1719624674287,-1196.48,0.00022027,3]
[330613361,1719624674297,-500.0,0.00022027,3]
[330613362,1719624674308,-500.0,0.00022027,3]
[330613363,1719624674317,-1077.34,0.00022027,3]
[330613364,1719624674328,-2323.69,0.00022027,3]
[330613365,1719624674338,-1062.24,0.00022027,3]
[330613366,1719624674352,-500.0,0.00022027,3]
[330613367,1719624674361,-1326.05,0.00022027,3]
[330613368,1719624674372,-500.0,0.00022027,3]
[330613369,1719624674382,-580.55,0.00022027,3]
[330613370,1719624674393,-500.0,0.00022027,3]
[330613371,1719624674403,-500.0,0.00022027,3]
[330613372,1719624674412,-1051.55,0.00022027,3]
[330613373,1719624674423,-500.0,0.00022027,3]
[330613374,1719624674435,-500.0,0.00022027,3]
[330613375,1719624674444,-500.0,0.00022027,3]
[330613376,1719624674454,-500.0,0.00022027,3]
[330613377,1719624674463,-642.49,0.00022027,3]
[330613378,1719624674473,-908.05,0.00022027,3]
[330613379,1719624674483,-500.0,0.00022027,3]
[330613380,1719624674492,-500.0,0.00022027,3]
[330613381,1719624674502,-762.93,0.00022027,3]
[330613382,1719624674512,-500.0,0.00022027,3]
[330613383,1719624674522,-500.0,0.00022027,3]
[330613384,1719624674532,-500.0,0.00022027,3]
[330613385,1719624674542,-686.62,0.00022027,3]
[330613386,1719624674552,-500.0,0.00022027,3]
[330613387,1719624674562,-500.0,0.00022027,3]
[330613388,1719624674572,-887.44,0.00022027,3]
[330613389,1719624674582,-1873.49,0.00022027,3]
[330613390,1719624674591,-1070.65,0.00022027,3]
[330613391,1719624674602,-500.0,0.00022027,3]
[330613392,1719624674611,-500.0,0.00022027,3]
[330613393,1719624674622,-606.09343105,0.00022027,3]
[330613394,1719624674631,-500.0,0.00022027,3]
[330613395,1719624674641,-500.0,0.00022027,3]
[330613396,1719624674651,-1593.78,0.00022027,3]
[330613397,1719624674661,-1135.99,0.00022027,3]
[330613398,1719624674672,-500.0,0.00022027,3]
[330613399,1719624674683,-500.0,0.00022027,3]
[330613400,1719624674692,-852.04,0.00022027,3]
[330613401,1719624674865,-500.0,0.00022027,3]
[330613402,1719624674876,-508.21,0.00022027,3]
[330613403,1719624674886,-500.0,0.00022027,3]
[330613404,1719624674896,-500.0,0.00022027,3]
[330613405,1719624674906,-948.7,0.00022027,3]
[330613406,1719624674915,-612.42,0.00022027,3]
[330613407,1719624674925,-3163.51,0.00022027,3]
[330613408,1719624674935,-1088.14,0.00022027,3]
[330613409,1719624674946,-1051.39,0.00022027,3]
[330613410,1719624674956,-917.89,0.00022027,3]
[330613411,1719624674966,-772.33,0.00022027,3]
[330613412,1719624674975,-703.13,0.00022027,3]
[330613413,1719624674985,-1258.79,0.00022027,3]
[330613414,1719624674995,-500.0,0.00022027,3]
[330613415,1719624675005,-500.0,0.00022027,3]
[330613416,1719624675014,-511.79,0.00022027,3]
[330613417,1719624675024,-852.13,0.00022027,3]
[330613418,1719624675033,-500.0,0.00022027,3]
[330613419,1719624675043,-648.36,0.00022027,3]
[330613420,1719624675052,-1191.02,0.00022027,3]
[330613421,1719624675062,-500.0,0.00022027,3]
[330613422,1719624675071,-769.21,0.00022027,3]
[330613423,1719624675081,-500.0,0.00022027,3]
[330613424,1719624675091,-500.0,0.00022027,3]
[330613425,1719624675100,-1011.47,0.00022027,3]
[330613426,1719624675110,-585.42,0.00022027,3]
[330613427,1719624675119,-500.0,0.00022027,3]
[330613428,1719624675129,-1435.04,0.00022027,3]
[330613429,1719624675138,-500.0,0.00022027,3]
[330613430,1719624675148,-897.15,0.00022027,3]